[Event "Titled Tuesday Blitz August 22 Late 2023"]
[White "Keymer, Vincent"]
[Black "Sadhwani, Raunak"]
[WhiteFideId "12940690"]
[BlackFideId "35093487"]
[WhiteElo "2972"]
[BlackElo "3032"]
[Result "1/2-1/2"]
[Round "8"]
[TimeControl "180+1"]
[Date "2023.08.22"]
[WhiteClock "0:00:05"]
[BlackClock "0:00:07"]
[Board "5"]

1. Nf3 {[%clk 0:03:00]}  g6 {[%clk 0:03:00]} 2. c4 {[%clk 0:03:00]}  Bg7 {[%clk 0:03:01]} 3. Nc3 {[%clk 0:03:01]}  Nf6 {[%clk 0:02:58]} 4. g3 {[%clk 0:03:01]}  O-O {[%clk 0:02:58]} 5. Bg2 {[%clk 0:03:02]}  c5 {[%clk 0:02:55]} 6. d4 {[%clk 0:03:01]}  cxd4 {[%clk 0:02:56]} 7. Nxd4 {[%clk 0:03:02]}  Nc6 {[%clk 0:02:57]} 8. O-O {[%clk 0:03:02]}  Qa5 {[%clk 0:02:57]} 9. e3 {[%clk 0:03:02]}  d6 {[%clk 0:02:57]} 10. Bd2 {[%clk 0:03:02]}  Qb6 {[%clk 0:02:57]} 11. Re1 {[%clk 0:03:02]}  Bd7 {[%clk 0:02:49]} 12. b3 {[%clk 0:02:51]}  Rac8 {[%clk 0:02:40]} 13. Rc1 {[%clk 0:02:49]}  h5 {[%clk 0:02:38]} 14. h3 {[%clk 0:02:47]}  Rfe8 {[%clk 0:02:37]} 15. Nf3 {[%clk 0:02:44]}  Ne5 {[%clk 0:02:16]} 16. Nxe5 {[%clk 0:02:41]}  dxe5 {[%clk 0:02:17]} 17. e4 {[%clk 0:02:41]}  Bc6 {[%clk 0:02:17]} 18. Nd5 {[%clk 0:02:21]}  Qd8 {[%clk 0:02:03]} 19. Bb4 {[%clk 0:01:55]}  Nd7 {[%clk 0:01:57]} 20. Qd2 {[%clk 0:01:47]}  e6 {[%clk 0:01:52]} 21. Nc3 {[%clk 0:01:46]}  Qb6 {[%clk 0:01:38]} 22. Bd6 {[%clk 0:01:45]}  Rcd8 {[%clk 0:01:33]} 23. b4 {[%clk 0:01:41]}  Qd4 {[%clk 0:01:29]} 24. Qxd4 {[%clk 0:01:10]}  exd4 {[%clk 0:01:30]} 25. Nb1 {[%clk 0:01:10]}  a6 {[%clk 0:01:23]} 26. e5 {[%clk 0:01:06]}  h4 {[%clk 0:00:54]} 27. g4 {[%clk 0:00:59]}  f6 {[%clk 0:00:48]} 28. exf6 {[%clk 0:00:58]}  Bxf6 {[%clk 0:00:46]} 29. Nd2 {[%clk 0:00:55]}  Bg5 {[%clk 0:00:21]} 30. f4 {[%clk 0:00:52]}  Bh6 {[%clk 0:00:17]} 31. Bxc6 {[%clk 0:00:47]}  bxc6 {[%clk 0:00:18]} 32. Ne4 {[%clk 0:00:47]}  e5 {[%clk 0:00:17]} 33. g5 {[%clk 0:00:25]}  Bg7 {[%clk 0:00:17]} 34. Bc7 {[%clk 0:00:25]}  Ra8 {[%clk 0:00:14]} 35. fxe5 {[%clk 0:00:19]}  Nxe5 {[%clk 0:00:15]} 36. Bxe5 {[%clk 0:00:18]}  Rxe5 {[%clk 0:00:15]} 37. Nf6+ {[%clk 0:00:04]}  Bxf6 {[%clk 0:00:13]} 38. gxf6 {[%clk 0:00:05]}  Rxe1+ {[%clk 0:00:06]} 39. Rxe1 {[%clk 0:00:06]}  a5 {[%clk 0:00:06]} 40. b5 {[%clk 0:00:06]}  cxb5 {[%clk 0:00:06]} 41. cxb5 {[%clk 0:00:07]}  a4 {[%clk 0:00:07]} 42. Kf2 {[%clk 0:00:01]}  Rd8 {[%clk 0:00:03]} 43. Rb1 {[%clk 0:00:01]}  Kf7 {[%clk 0:00:03]} 44. Ke2 {[%clk 0:00:01]}  Kxf6 {[%clk 0:00:03]} 45. Kd3 {[%clk 0:00:01]}  Ke5 {[%clk 0:00:04]} 46. Rb4 {[%clk 0:00:02]}  Rb8 {[%clk 0:00:03]} 47. b6 {[%clk 0:00:02]}  Kf4 {[%clk 0:00:03]} 48. Rxd4+ {[%clk 0:00:01]}  Kg3 {[%clk 0:00:04]} 49. Rg4+ {[%clk 0:00:02]}  Kxh3 {[%clk 0:00:04]} 50. Rxg6 {[%clk 0:00:03]}  Kh2 {[%clk 0:00:05]} 51. Kc4 {[%clk 0:00:03]}  h3 {[%clk 0:00:05]} 52. a3 {[%clk 0:00:03]}  Kh1 {[%clk 0:00:05]} 53. Kb5 {[%clk 0:00:04]}  h2 {[%clk 0:00:05]} 54. Kxa4 {[%clk 0:00:04]}  Ra8+ {[%clk 0:00:06]} 55. Kb4 {[%clk 0:00:04]}  Ra4+ {[%clk 0:00:06]} 56. Kc5 {[%clk 0:00:03]}  Ra5+ {[%clk 0:00:05]} 57. Kc6 {[%clk 0:00:03]}  Rxa3 {[%clk 0:00:06]} 58. Rh6 {[%clk 0:00:02]}  Rc3+ {[%clk 0:00:05]} 59. Kd7 {[%clk 0:00:02]}  Rd3+ {[%clk 0:00:06]} 60. Kc7 {[%clk 0:00:03]}  Rc3+ {[%clk 0:00:06]} 61. Kd7 {[%clk 0:00:04]}  Rd3+ {[%clk 0:00:06]} 62. Kc7 {[%clk 0:00:04]}  Rc3+ {[%clk 0:00:07]} 63. Kd7 {[%clk 0:00:05]} 1/2-1/2


[Site "https://www.chess.com"]

[Event "Titled Tuesday Blitz August 22 Late 2023"]
[White "Nguyen, Ngoc Truong Son"]
[Black "Pakleza, Zbigniew"]
[WhiteFideId "12401110"]
[BlackFideId "1119290"]
[WhiteElo "3018"]
[BlackElo "2864"]
[Result "0-1"]
[Round "8"]
[TimeControl "180+1"]
[Date "2023.08.22"]
[WhiteClock "0:00:00"]
[BlackClock "0:00:07"]
[Board "7"]

1. d4 {[%clk 0:03:00]}  d5 {[%clk 0:02:59]} 2. c4 {[%clk 0:03:01]}  c6 {[%clk 0:03:00]} 3. Nc3 {[%clk 0:03:01]}  Nf6 {[%clk 0:03:00]} 4. Nf3 {[%clk 0:03:02]}  Qb6 {[%clk 0:03:00]} 5. c5 {[%clk 0:02:59]}  Qc7 {[%clk 0:02:58]} 6. g3 {[%clk 0:02:58]}  Bf5 {[%clk 0:02:53]} 7. Bf4 {[%clk 0:02:56]}  Qc8 {[%clk 0:02:53]} 8. b4 {[%clk 0:02:55]}  a6 {[%clk 0:02:52]} 9. Bg2 {[%clk 0:02:37]}  h6 {[%clk 0:02:48]} 10. O-O {[%clk 0:02:36]}  e6 {[%clk 0:02:48]} 11. a4 {[%clk 0:02:35]}  Be7 {[%clk 0:02:47]} 12. b5 {[%clk 0:02:36]}  O-O {[%clk 0:02:46]} 13. Qb3 {[%clk 0:02:35]}  Ne4 {[%clk 0:02:40]} 14. Bxb8 {[%clk 0:02:12]}  Rxb8 {[%clk 0:02:33]} 15. Nxe4 {[%clk 0:02:12]}  Bxe4 {[%clk 0:02:28]} 16. Ne5 {[%clk 0:02:12]}  Bh7 {[%clk 0:02:12]} 17. e3 {[%clk 0:01:56]}  Qc7 {[%clk 0:02:10]} 18. Rfd1 {[%clk 0:01:50]}  Bxc5 {[%clk 0:01:45]} 19. dxc5 {[%clk 0:01:11]}  Qxe5 {[%clk 0:01:44]} 20. Rd4 {[%clk 0:01:11]}  Qc7 {[%clk 0:01:30]} 21. Rc1 {[%clk 0:00:43]}  axb5 {[%clk 0:01:02]} 22. axb5 {[%clk 0:00:44]}  Ra8 {[%clk 0:01:02]} 23. Ra4 {[%clk 0:00:38]}  Rxa4 {[%clk 0:00:55]} 24. Qxa4 {[%clk 0:00:39]}  Bd3 {[%clk 0:00:55]} 25. b6 {[%clk 0:00:22]}  Qe7 {[%clk 0:00:52]} 26. Qd4 {[%clk 0:00:21]}  Ba6 {[%clk 0:00:43]} 27. f4 {[%clk 0:00:20]}  f6 {[%clk 0:00:35]} 28. Ra1 {[%clk 0:00:19]}  e5 {[%clk 0:00:35]} 29. Qc3 {[%clk 0:00:18]}  Kh8 {[%clk 0:00:31]} 30. h3 {[%clk 0:00:18]}  Re8 {[%clk 0:00:29]} 31. f5 {[%clk 0:00:15]}  Qd7 {[%clk 0:00:25]} 32. g4 {[%clk 0:00:15]}  d4 {[%clk 0:00:26]} 33. Qd2 {[%clk 0:00:13]}  Rd8 {[%clk 0:00:22]} 34. exd4 {[%clk 0:00:09]}  exd4 {[%clk 0:00:19]} 35. Re1 {[%clk 0:00:07]}  d3 {[%clk 0:00:17]} 36. Kh2 {[%clk 0:00:03]}  Qd4 {[%clk 0:00:15]} 37. Rc1 {[%clk 0:00:02]}  Re8 {[%clk 0:00:13]} 38. Bf3 {[%clk 0:00:03]}  Re3 {[%clk 0:00:11]} 39. Kg2 {[%clk 0:00:03]}  Qf4 {[%clk 0:00:10]} 40. Rf1 {[%clk 0:00:00]}  Re2+ {[%clk 0:00:07]} 0-1


[Site "https://www.chess.com"]

[Event "Titled Tuesday Blitz August 22 Late 2023"]
[White "Grischuk, Alexander"]
[Black "Elsa167"]
[WhiteFideId "4126025"]
[WhiteElo "3007"]
[BlackElo "2893"]
[Result "1/2-1/2"]
[Round "8"]
[TimeControl "180+1"]
[Date "2023.08.22"]
[WhiteClock "0:00:06"]
[BlackClock "0:00:09"]
[Board "12"]

1. d4 {[%clk 0:03:00]}  e6 {[%clk 0:03:00]} 2. Nf3 {[%clk 0:02:56]}  Nf6 {[%clk 0:02:59]} 3. c4 {[%clk 0:02:55]}  d5 {[%clk 0:02:59]} 4. Nc3 {[%clk 0:02:55]}  a6 {[%clk 0:02:57]} 5. c5 {[%clk 0:02:55]}  b6 {[%clk 0:02:56]} 6. cxb6 {[%clk 0:02:55]}  cxb6 {[%clk 0:02:57]} 7. Bf4 {[%clk 0:02:55]}  Bd6 {[%clk 0:02:58]} 8. e3 {[%clk 0:02:55]}  O-O {[%clk 0:02:57]} 9. Bd3 {[%clk 0:02:55]}  Bb7 {[%clk 0:02:56]} 10. O-O {[%clk 0:02:55]}  Nc6 {[%clk 0:02:55]} 11. Rc1 {[%clk 0:02:53]}  Rc8 {[%clk 0:02:43]} 12. Qe2 {[%clk 0:02:48]}  Nb4 {[%clk 0:02:36]} 13. Bb1 {[%clk 0:02:47]}  a5 {[%clk 0:01:40]} 14. Rfd1 {[%clk 0:02:46]}  Ba6 {[%clk 0:01:39]} 15. Qe1 {[%clk 0:02:37]}  Bxf4 {[%clk 0:01:10]} 16. exf4 {[%clk 0:02:37]}  g6 {[%clk 0:01:06]} 17. h3 {[%clk 0:02:28]}  Qd6 {[%clk 0:01:06]} 18. Qe3 {[%clk 0:02:28]}  Rc7 {[%clk 0:01:00]} 19. g4 {[%clk 0:02:18]}  Rfc8 {[%clk 0:00:59]} 20. Ne5 {[%clk 0:02:18]}  Nd7 {[%clk 0:00:53]} 21. Kg2 {[%clk 0:02:01]}  Nxe5 {[%clk 0:00:49]} 22. fxe5 {[%clk 0:02:02]}  Qe7 {[%clk 0:00:49]} 23. Qg3 {[%clk 0:01:49]}  Nc6 {[%clk 0:00:44]} 24. g5 {[%clk 0:01:35]}  b5 {[%clk 0:00:41]} 25. Ne2 {[%clk 0:01:18]}  b4 {[%clk 0:00:40]} 26. Nf4 {[%clk 0:01:18]}  Nd8 {[%clk 0:00:28]} 27. Rxc7 {[%clk 0:01:18]}  Rxc7 {[%clk 0:00:22]} 28. h4 {[%clk 0:01:17]}  Rc4 {[%clk 0:00:20]} 29. b3 {[%clk 0:00:55]}  Rc3 {[%clk 0:00:19]} 30. Qg4 {[%clk 0:00:55]}  Nc6 {[%clk 0:00:18]} 31. h5 {[%clk 0:00:55]}  Qf8 {[%clk 0:00:09]} 32. hxg6 {[%clk 0:00:39]}  hxg6 {[%clk 0:00:10]} 33. Rh1 {[%clk 0:00:13]}  Nxd4 {[%clk 0:00:07]} 34. Nxd5 {[%clk 0:00:12]}  Bb7 {[%clk 0:00:05]} 35. Qxd4 {[%clk 0:00:08]}  Bxd5+ {[%clk 0:00:06]} 36. Be4 {[%clk 0:00:09]}  Qc5 {[%clk 0:00:03]} 37. Qxc5 {[%clk 0:00:08]}  Rxc5 {[%clk 0:00:04]} 38. Bxd5 {[%clk 0:00:04]}  Rxd5 {[%clk 0:00:05]} 39. Kg3 {[%clk 0:00:02]}  Rxe5 {[%clk 0:00:05]} 40. f4 {[%clk 0:00:03]}  Re2 {[%clk 0:00:03]} 41. Ra1 {[%clk 0:00:03]}  Rc2 {[%clk 0:00:03]} 42. Kf3 {[%clk 0:00:04]}  Kf8 {[%clk 0:00:03]} 43. Ke4 {[%clk 0:00:05]}  Ke7 {[%clk 0:00:04]} 44. Kd4 {[%clk 0:00:04]}  Re2 {[%clk 0:00:04]} 45. Kd3 {[%clk 0:00:04]}  Rf2 {[%clk 0:00:04]} 46. Ke4 {[%clk 0:00:05]}  Rb2 {[%clk 0:00:05]} 47. Ke5 {[%clk 0:00:04]}  Re2+ {[%clk 0:00:04]} 48. Kd4 {[%clk 0:00:05]}  f6 {[%clk 0:00:05]} 49. gxf6+ {[%clk 0:00:04]}  Kxf6 {[%clk 0:00:06]} 50. Kc5 {[%clk 0:00:04]}  Rd2 {[%clk 0:00:05]} 51. Kb6 {[%clk 0:00:04]}  Rd5 {[%clk 0:00:05]} 52. Rg1 {[%clk 0:00:04]}  g5 {[%clk 0:00:02]} 53. fxg5+ {[%clk 0:00:04]}  Rxg5 {[%clk 0:00:03]} 54. Rh1 {[%clk 0:00:03]}  Rd5 {[%clk 0:00:02]} 55. Rh6+ {[%clk 0:00:03]}  Ke5 {[%clk 0:00:02]} 56. Rh5+ {[%clk 0:00:02]}  Kd6 {[%clk 0:00:03]} 57. Rh6 {[%clk 0:00:03]}  Rd2 {[%clk 0:00:02]} 58. Kxa5 {[%clk 0:00:02]}  Rxa2+ {[%clk 0:00:02]} 59. Kxb4 {[%clk 0:00:03]}  Rf2 {[%clk 0:00:03]} 60. Kc3 {[%clk 0:00:03]}  Kd5 {[%clk 0:00:03]} 61. Rh8 {[%clk 0:00:03]}  e5 {[%clk 0:00:04]} 62. Rd8+ {[%clk 0:00:02]}  Ke4 {[%clk 0:00:04]} 63. b4 {[%clk 0:00:03]}  Rf3+ {[%clk 0:00:04]} 64. Kc4 {[%clk 0:00:03]}  Rf1 {[%clk 0:00:05]} 65. b5 {[%clk 0:00:04]}  Rc1+ {[%clk 0:00:05]} 66. Kb4 {[%clk 0:00:04]}  Rb1+ {[%clk 0:00:05]} 67. Kc5 {[%clk 0:00:05]}  Rc1+ {[%clk 0:00:06]} 68. Kb6 {[%clk 0:00:05]}  Ke3 {[%clk 0:00:05]} 69. Ka7 {[%clk 0:00:05]}  Ra1+ {[%clk 0:00:06]} 70. Kb7 {[%clk 0:00:05]}  e4 {[%clk 0:00:06]} 71. b6 {[%clk 0:00:06]}  Kf2 {[%clk 0:00:06]} 72. Rf8+ {[%clk 0:00:06]}  Ke2 {[%clk 0:00:06]} 73. Kc6 {[%clk 0:00:05]}  Rc1+ {[%clk 0:00:06]} 74. Kd6 {[%clk 0:00:05]}  Rb1 {[%clk 0:00:06]} 75. Kc6 {[%clk 0:00:06]}  e3 {[%clk 0:00:06]} 76. b7 {[%clk 0:00:05]}  Kd2 {[%clk 0:00:07]} 77. Rd8+ {[%clk 0:00:05]}  Ke1 {[%clk 0:00:07]} 78. b8=Q {[%clk 0:00:05]}  Rxb8 {[%clk 0:00:06]} 79. Rxb8 {[%clk 0:00:06]}  e2 {[%clk 0:00:07]} 80. Kd5 {[%clk 0:00:06]}  Kf2 {[%clk 0:00:07]} 81. Rf8+ {[%clk 0:00:06]}  Kg2 {[%clk 0:00:07]} 82. Re8 {[%clk 0:00:06]}  Kf2 {[%clk 0:00:08]} 83. Rxe2+ {[%clk 0:00:06]}  Kxe2 {[%clk 0:00:09]} 1/2-1/2


[Site "https://www.chess.com"]

[Event "Titled Tuesday Blitz August 22 Late 2023"]
[White "Paravyan, David"]
[Black "Leiva, Gianmarco"]
[WhiteFideId "4194985"]
[BlackFideId "3804399"]
[WhiteElo "2966"]
[BlackElo "2762"]
[Result "1-0"]
[Round "8"]
[TimeControl "180+1"]
[Date "2023.08.22"]
[WhiteClock "0:01:51"]
[BlackClock "0:00:07"]
[Board "13"]

1. e4 {[%clk 0:03:00]}  c5 {[%clk 0:02:59]} 2. Nf3 {[%clk 0:03:01]}  d6 {[%clk 0:02:59]} 3. d4 {[%clk 0:03:01]}  cxd4 {[%clk 0:02:59]} 4. Nxd4 {[%clk 0:03:02]}  Nf6 {[%clk 0:03:00]} 5. Nc3 {[%clk 0:03:03]}  a6 {[%clk 0:03:00]} 6. f3 {[%clk 0:03:03]}  e5 {[%clk 0:02:57]} 7. Nb3 {[%clk 0:03:03]}  Be6 {[%clk 0:02:56]} 8. Be3 {[%clk 0:03:03]}  Be7 {[%clk 0:02:55]} 9. Qd2 {[%clk 0:03:01]}  h5 {[%clk 0:02:56]} 10. Nd5 {[%clk 0:02:59]}  Nxd5 {[%clk 0:02:10]} 11. exd5 {[%clk 0:03:00]}  Bf5 {[%clk 0:02:11]} 12. Be2 {[%clk 0:03:00]}  Bh4+ {[%clk 0:01:37]} 13. g3 {[%clk 0:02:59]}  Bf6 {[%clk 0:01:37]} 14. O-O {[%clk 0:02:59]}  O-O {[%clk 0:01:31]} 15. f4 {[%clk 0:02:58]}  exf4 {[%clk 0:01:19]} 16. Rxf4 {[%clk 0:02:57]}  Bg6 {[%clk 0:01:18]} 17. Raf1 {[%clk 0:02:34]}  Bg5 {[%clk 0:01:08]} 18. Rb4 {[%clk 0:02:31]}  Bxe3+ {[%clk 0:01:05]} 19. Qxe3 {[%clk 0:02:32]}  Re8 {[%clk 0:01:00]} 20. Qf2 {[%clk 0:02:32]}  Qc7 {[%clk 0:00:44]} 21. Rf4 {[%clk 0:02:27]}  Qxc2 {[%clk 0:00:35]} 22. Nd4 {[%clk 0:02:17]}  Qc5 {[%clk 0:00:27]} 23. Rxf7 {[%clk 0:02:08]}  Rxe2 {[%clk 0:00:24]} 24. Rf8+ {[%clk 0:02:07]}  Kh7 {[%clk 0:00:24]} 25. Nxe2 {[%clk 0:02:08]}  Bd3 {[%clk 0:00:13]} 26. Qxc5 {[%clk 0:01:54]}  dxc5 {[%clk 0:00:13]} 27. R1f2 {[%clk 0:01:54]}  c4 {[%clk 0:00:10]} 28. d6 {[%clk 0:01:51]}  b5 {[%clk 0:00:07]} 29. d7 {[%clk 0:01:51]} 1-0


[Site "https://www.chess.com"]

[Event "Titled Tuesday Blitz August 22 Late 2023"]
[White "Dourerassou, Jonathan"]
[Black "Kramnik, Vladimir"]
[WhiteFideId "628050"]
[BlackFideId "4101588"]
[WhiteElo "2716"]
[BlackElo "2936"]
[Result "0-1"]
[Round "8"]
[TimeControl "180+1"]
[Date "2023.08.22"]
[WhiteClock "0:01:16"]
[BlackClock "0:00:40"]
[Board "15"]

1. e4 {[%clk 0:03:00]}  c5 {[%clk 0:02:59]} 2. Nf3 {[%clk 0:03:00]}  e6 {[%clk 0:02:59]} 3. d4 {[%clk 0:03:00]}  cxd4 {[%clk 0:02:59]} 4. Nxd4 {[%clk 0:03:01]}  Nf6 {[%clk 0:02:59]} 5. Nc3 {[%clk 0:03:01]}  Nc6 {[%clk 0:02:59]} 6. Ndb5 {[%clk 0:03:00]}  d6 {[%clk 0:02:59]} 7. Bf4 {[%clk 0:03:00]}  e5 {[%clk 0:03:00]} 8. Bg5 {[%clk 0:03:01]}  a6 {[%clk 0:03:01]} 9. Na3 {[%clk 0:03:01]}  b5 {[%clk 0:03:01]} 10. Bxf6 {[%clk 0:02:59]}  gxf6 {[%clk 0:03:00]} 11. Nd5 {[%clk 0:02:59]}  f5 {[%clk 0:03:00]} 12. c3 {[%clk 0:03:00]}  Bg7 {[%clk 0:02:59]} 13. exf5 {[%clk 0:03:00]}  Bxf5 {[%clk 0:02:58]} 14. Nc2 {[%clk 0:03:01]}  O-O {[%clk 0:02:56]} 15. Nce3 {[%clk 0:02:58]}  Be6 {[%clk 0:02:56]} 16. Bd3 {[%clk 0:02:49]}  f5 {[%clk 0:02:52]} 17. Bc2 {[%clk 0:02:49]}  Kh8 {[%clk 0:01:52]} 18. Qh5 {[%clk 0:02:45]}  e4 {[%clk 0:01:40]} 19. Nf4 {[%clk 0:02:39]}  Qe8 {[%clk 0:01:38]} 20. Qxe8 {[%clk 0:02:17]}  Raxe8 {[%clk 0:01:38]} 21. Nxe6 {[%clk 0:02:17]}  Rxe6 {[%clk 0:01:38]} 22. O-O-O {[%clk 0:02:18]}  f4 {[%clk 0:01:32]} 23. Nd5 {[%clk 0:02:15]}  e3 {[%clk 0:01:28]} 24. f3 {[%clk 0:02:09]}  b4 {[%clk 0:01:14]} 25. Ba4 {[%clk 0:02:00]}  Ne5 {[%clk 0:01:08]} 26. Nxb4 {[%clk 0:01:56]}  Rg6 {[%clk 0:01:07]} 27. Rhg1 {[%clk 0:01:50]}  a5 {[%clk 0:01:02]} 28. Nd5 {[%clk 0:01:26]}  e2 {[%clk 0:01:00]} 29. Rde1 {[%clk 0:01:21]}  Nd3+ {[%clk 0:01:00]} 30. Kd2 {[%clk 0:01:22]}  Nxe1 {[%clk 0:00:53]} 31. Kxe1 {[%clk 0:01:23]}  Re6 {[%clk 0:00:52]} 32. Bc2 {[%clk 0:01:22]}  Rb8 {[%clk 0:00:43]} 33. b3 {[%clk 0:01:22]}  Rb5 {[%clk 0:00:41]} 34. c4 {[%clk 0:01:22]}  Rxd5 {[%clk 0:00:40]} 35. cxd5 {[%clk 0:01:21]}  Bc3+ {[%clk 0:00:40]} 36. Kf2 {[%clk 0:01:16]}  e1=Q+ {[%clk 0:00:40]} 0-1


[Site "https://www.chess.com"]

[Event "Titled Tuesday Blitz August 22 Late 2023"]
[White "Olsen, Filip Boe"]
[Black "Deac, Bogdan-Daniel"]
[WhiteFideId "1440640"]
[BlackFideId "1226380"]
[WhiteElo "2705"]
[BlackElo "3035"]
[Result "0-1"]
[Round "8"]
[TimeControl "180+1"]
[Date "2023.08.22"]
[WhiteClock "0:00:02"]
[BlackClock "0:00:58"]
[Board "17"]

1. d4 {[%clk 0:03:00]}  Nf6 {[%clk 0:02:58]} 2. Nf3 {[%clk 0:02:54]}  d5 {[%clk 0:02:58]} 3. Bf4 {[%clk 0:02:54]}  c5 {[%clk 0:02:58]} 4. e3 {[%clk 0:02:54]}  Nc6 {[%clk 0:02:59]} 5. Nbd2 {[%clk 0:02:55]}  cxd4 {[%clk 0:02:59]} 6. exd4 {[%clk 0:02:54]}  Nh5 {[%clk 0:03:00]} 7. Be3 {[%clk 0:02:51]}  g6 {[%clk 0:03:00]} 8. Bb5 {[%clk 0:02:41]}  Bg7 {[%clk 0:02:59]} 9. O-O {[%clk 0:02:40]}  O-O {[%clk 0:02:59]} 10. Re1 {[%clk 0:02:38]}  Qb6 {[%clk 0:02:58]} 11. a4 {[%clk 0:02:35]}  Nxd4 {[%clk 0:02:49]} 12. Nxd4 {[%clk 0:02:24]}  Bxd4 {[%clk 0:02:49]} 13. Nc4 {[%clk 0:02:24]}  dxc4 {[%clk 0:02:46]} 14. Bxd4 {[%clk 0:02:23]}  Qc7 {[%clk 0:02:44]} 15. Be5 {[%clk 0:02:22]}  Qc5 {[%clk 0:02:44]} 16. Bd4 {[%clk 0:02:20]}  Qd5 {[%clk 0:02:43]} 17. Re5 {[%clk 0:02:11]}  Qd6 {[%clk 0:02:43]} 18. c3 {[%clk 0:02:05]}  Be6 {[%clk 0:02:29]} 19. a5 {[%clk 0:01:23]}  a6 {[%clk 0:02:22]} 20. Ba4 {[%clk 0:01:22]}  Nf6 {[%clk 0:02:17]} 21. Bc2 {[%clk 0:01:22]}  Ng4 {[%clk 0:02:17]} 22. Rxe6 {[%clk 0:00:59]}  Qxe6 {[%clk 0:02:09]} 23. h3 {[%clk 0:00:54]}  Nf6 {[%clk 0:02:08]} 24. Qf3 {[%clk 0:00:54]}  Rad8 {[%clk 0:02:07]} 25. Kf1 {[%clk 0:00:53]}  Rxd4 {[%clk 0:02:02]} 26. cxd4 {[%clk 0:00:53]}  Qd7 {[%clk 0:02:02]} 27. Rd1 {[%clk 0:00:51]}  Qb5 {[%clk 0:02:00]} 28. Kg1 {[%clk 0:00:46]}  Qxb2 {[%clk 0:01:58]} 29. Bb1 {[%clk 0:00:41]}  c3 {[%clk 0:01:56]} 30. Qd3 {[%clk 0:00:39]}  Rc8 {[%clk 0:01:55]} 31. Bc2 {[%clk 0:00:39]}  Nd5 {[%clk 0:01:56]} 32. Rb1 {[%clk 0:00:39]}  Qa3 {[%clk 0:01:44]} 33. Rxb7 {[%clk 0:00:30]}  Qxa5 {[%clk 0:01:29]} 34. Qf3 {[%clk 0:00:20]}  Qd8 {[%clk 0:01:16]} 35. g3 {[%clk 0:00:14]}  a5 {[%clk 0:01:13]} 36. Kh2 {[%clk 0:00:14]}  Nf6 {[%clk 0:01:11]} 37. Qe3 {[%clk 0:00:10]}  Nd5 {[%clk 0:01:05]} 38. Qf3 {[%clk 0:00:10]}  Qd6 {[%clk 0:01:05]} 39. Bb3 {[%clk 0:00:09]}  Nf6 {[%clk 0:01:03]} 40. Bc2 {[%clk 0:00:06]}  Kg7 {[%clk 0:01:02]} 41. Ra7 {[%clk 0:00:07]}  h5 {[%clk 0:01:02]} 42. Rxa5 {[%clk 0:00:07]}  Qxd4 {[%clk 0:01:00]} 43. Ra4 {[%clk 0:00:06]}  Qd2 {[%clk 0:00:59]} 44. Ra2 {[%clk 0:00:06]}  h4 {[%clk 0:00:58]} 45. Kg2 {[%clk 0:00:05]}  hxg3 {[%clk 0:00:58]} 46. Qxg3 {[%clk 0:00:06]}  Qd5+ {[%clk 0:00:57]} 47. Kh2 {[%clk 0:00:02]}  Qxa2 {[%clk 0:00:58]} 0-1


[Site "https://www.chess.com"]

[Event "Titled Tuesday Blitz August 22 Late 2023"]
[White "Hakobyan, Aram"]
[Black "Jaracz, Pawel"]
[WhiteFideId "13306677"]
[BlackFideId "1102222"]
[WhiteElo "2990"]
[BlackElo "2731"]
[Result "1-0"]
[Round "8"]
[TimeControl "180+1"]
[Date "2023.08.22"]
[WhiteClock "0:01:15"]
[BlackClock "0:00:04"]
[Board "18"]

1. d4 {[%clk 0:03:00]}  d5 {[%clk 0:02:54]} 2. c4 {[%clk 0:03:00]}  c6 {[%clk 0:02:52]} 3. Nc3 {[%clk 0:03:00]}  Nf6 {[%clk 0:02:50]} 4. Nf3 {[%clk 0:03:01]}  a6 {[%clk 0:02:47]} 5. Qc2 {[%clk 0:03:01]}  dxc4 {[%clk 0:02:42]} 6. e4 {[%clk 0:03:01]}  b5 {[%clk 0:02:39]} 7. Be2 {[%clk 0:03:02]}  g6 {[%clk 0:02:31]} 8. b3 {[%clk 0:02:54]}  cxb3 {[%clk 0:02:06]} 9. axb3 {[%clk 0:02:55]}  Bg7 {[%clk 0:02:05]} 10. O-O {[%clk 0:02:56]}  O-O {[%clk 0:02:05]} 11. Rd1 {[%clk 0:02:55]}  Bg4 {[%clk 0:01:37]} 12. h3 {[%clk 0:02:50]}  Bxf3 {[%clk 0:01:37]} 13. Bxf3 {[%clk 0:02:51]}  e6 {[%clk 0:01:37]} 14. e5 {[%clk 0:02:44]}  Nd5 {[%clk 0:01:36]} 15. Bxd5 {[%clk 0:02:45]}  exd5 {[%clk 0:01:31]} 16. Ne2 {[%clk 0:02:31]}  a5 {[%clk 0:01:20]} 17. Ba3 {[%clk 0:02:32]}  Re8 {[%clk 0:01:17]} 18. Bd6 {[%clk 0:02:33]}  Qb6 {[%clk 0:01:16]} 19. Rac1 {[%clk 0:02:30]}  Ra6 {[%clk 0:01:13]} 20. Nf4 {[%clk 0:02:29]}  Nd7 {[%clk 0:01:12]} 21. h4 {[%clk 0:02:18]}  Bh6 {[%clk 0:01:09]} 22. Qd2 {[%clk 0:02:07]}  a4 {[%clk 0:01:05]} 23. Nxd5 {[%clk 0:01:40]}  Bxd2 {[%clk 0:01:02]} 24. Nxb6 {[%clk 0:01:40]}  Nxb6 {[%clk 0:00:51]} 25. Rxd2 {[%clk 0:01:40]}  axb3 {[%clk 0:00:43]} 26. Rb2 {[%clk 0:01:36]}  Nc4 {[%clk 0:00:40]} 27. Rxb3 {[%clk 0:01:36]}  Rd8 {[%clk 0:00:37]} 28. Bc5 {[%clk 0:01:31]}  Rda8 {[%clk 0:00:21]} 29. Kh2 {[%clk 0:01:23]}  Ra1 {[%clk 0:00:20]} 30. Rxa1 {[%clk 0:01:15]}  Rxa1 {[%clk 0:00:20]} 31. h5 {[%clk 0:01:16]}  gxh5 {[%clk 0:00:20]} 32. Rg3+ {[%clk 0:01:16]}  Kh8 {[%clk 0:00:18]} 33. Be7 {[%clk 0:01:17]}  h6 {[%clk 0:00:16]} 34. Bf6+ {[%clk 0:01:18]}  Kh7 {[%clk 0:00:17]} 35. Rg7+ {[%clk 0:01:18]}  Kh8 {[%clk 0:00:16]} 36. e6 {[%clk 0:01:19]}  Ra8 {[%clk 0:00:05]} 37. Rxf7+ {[%clk 0:01:14]}  Kg8 {[%clk 0:00:04]} 38. Rg7+ {[%clk 0:01:15]} 1-0


[Site "https://www.chess.com"]